[Event "*** Titled Tuesday Blitz"]
[Site "Chess.com"]
[Date "2018.04.03"]
[Round "2"]
[White "Jospem"]
[Black "Fedor_Dvenyatin"]
[Result "1-0"]
[WhiteElo "2757"]
[BlackElo "2534"]
[TimeControl "180+2"]
[EndTime "13:20:40 PDT"]
[Termination "Jospem won by resignation"]

1. e4 {[%clk 0:03:00.6]} 1... c5 {[%clk 0:03:00.7]} 2. Nf3 {[%clk 0:03:01.4]}
2... d6 {[%clk 0:03:02.2]} 3. d4 {[%clk 0:03:02.9]} 3... cxd4 {[%clk 0:03:03.9]}
4. Nxd4 {[%clk 0:03:04.8]} 4... Nf6 {[%clk 0:03:04.9]} 5. Nc3 {[%clk 0:03:06.4]}
5... a6 {[%clk 0:03:06.1]} 6. f3 {[%clk 0:03:07.9]} 6... e6 {[%clk 0:03:04.2]}
7. Be3 {[%clk 0:03:07.9]} 7... b5 {[%clk 0:03:03.1]} 8. Qd2 {[%clk 0:03:09.2]}
8... Nbd7 {[%clk 0:02:59.7]} 9. g4 {[%clk 0:03:09.5]} 9... h6 {[%clk 0:02:59.7]}
10. O-O-O {[%clk 0:03:09.7]} 10... b4 {[%clk 0:03:00.8]} 11. Nce2 {[%clk
0:03:10.2]} 11... Ne5 {[%clk 0:02:56.9]} 12. Ng3 {[%clk 0:03:04.9]} 12... d5
{[%clk 0:02:47.8]} 13. exd5 {[%clk 0:02:40.4]} 13... Nxd5 {[%clk 0:02:35.2]} 14.
Bf2 {[%clk 0:02:41.3]} 14... Qa5 {[%clk 0:02:20.2]} 15. Kb1 {[%clk 0:02:40.3]}
15... Bd7 {[%clk 0:02:06.8]} 16. Ne4 {[%clk 0:02:25.3]} 16... Rc8 {[%clk
0:01:55.3]} 17. Bg3 {[%clk 0:02:23]} 17... Nc4 {[%clk 0:01:40.5]} 18. Bxc4
{[%clk 0:02:16.2]} 18... Rxc4 {[%clk 0:01:41.8]} 19. Rhe1 {[%clk 0:02:12.4]}
19... Be7 {[%clk 0:01:40.5]} 20. Nb3 {[%clk 0:01:58.6]} 20... Qb6 {[%clk
0:01:32.9]} 21. Nd6+ {[%clk 0:01:56]} 21... Bxd6 {[%clk 0:01:28]} 22. Qxd5
{[%clk 0:01:54.8]} 22... Rc6 {[%clk 0:01:22.8]} 23. Bxd6 {[%clk 0:01:50.4]}
23... Qb5 {[%clk 0:00:51.3]} 24. Qxb5 {[%clk 0:01:47.1]} 24... axb5 {[%clk
0:00:53.2]} 25. Bxb4 {[%clk 0:01:48.5]} 25... Rc4 {[%clk 0:00:51.4]} 26. a3
{[%clk 0:01:49.1]} 26... Rf4 {[%clk 0:00:47.2]} 27. Nc5 {[%clk 0:01:46.3]} 27...
Bc6 {[%clk 0:00:46.4]} 28. Nxe6 {[%clk 0:01:46.2]} 28... fxe6 {[%clk 0:00:41]}
29. Rxe6+ {[%clk 0:01:48]} 29... Kf7 {[%clk 0:00:42.5]} 30. Rxc6 {[%clk
0:01:48.8]} 30... Rxf3 {[%clk 0:00:36]} 31. Rd7+ {[%clk 0:01:49.7]} 31... Kg8
{[%clk 0:00:31.7]} 32. Rcc7 {[%clk 0:01:48.4]} 1-0

[Event "*** Titled Tuesday Blitz"]
[Site "Chess.com"]
[Date "2018.04.03"]
[Round "2"]
[White "Zkid"]
[Black "joppie2"]
[Result "1-0"]
[WhiteElo "2640"]
[BlackElo "2681"]
[TimeControl "180+2"]
[EndTime "13:20:44 PDT"]
[Termination "Zkid won by resignation"]

1. e4 {[%clk 0:03:01.6]} 1... e5 {[%clk 0:02:59.8]} 2. Nf3 {[%clk 0:03:02.5]}
2... Nc6 {[%clk 0:02:59.2]} 3. Bc4 {[%clk 0:03:01.9]} 3... Nf6 {[%clk
0:02:55.8]} 4. Ng5 {[%clk 0:03:02]} 4... d5 {[%clk 0:02:51.3]} 5. exd5 {[%clk
0:03:03.9]} 5... Na5 {[%clk 0:02:52.8]} 6. Bb5+ {[%clk 0:03:05.2]} 6... c6
{[%clk 0:02:54.3]} 7. dxc6 {[%clk 0:03:07.1]} 7... bxc6 {[%clk 0:02:56.2]} 8.
Be2 {[%clk 0:03:08.5]} 8... h6 {[%clk 0:02:53.8]} 9. Nf3 {[%clk 0:03:09.4]} 9...
e4 {[%clk 0:02:55.1]} 10. Ne5 {[%clk 0:03:10.6]} 10... Bd6 {[%clk 0:02:55.5]}
11. d4 {[%clk 0:03:11.2]} 11... exd3 {[%clk 0:02:57.4]} 12. Nxd3 {[%clk
0:03:11.7]} 12... O-O {[%clk 0:02:57.8]} 13. Nd2 {[%clk 0:03:09.6]} 13... Re8
{[%clk 0:02:56.3]} 14. O-O {[%clk 0:03:10.7]} 14... Qc7 {[%clk 0:02:48.4]} 15.
Nf3 {[%clk 0:03:11.3]} 15... Bf5 {[%clk 0:02:46.6]} 16. b3 {[%clk 0:03:01.9]}
16... Rad8 {[%clk 0:02:46.8]} 17. Bb2 {[%clk 0:03:00.7]} 17... Nd5 {[%clk
0:02:35.5]} 18. Re1 {[%clk 0:02:52.3]} 18... Nf4 {[%clk 0:02:15.3]} 19. Nxf4
{[%clk 0:02:41.7]} 19... Bxf4 {[%clk 0:02:17.2]} 20. Bd3 {[%clk 0:02:42.8]}
20... Bg4 {[%clk 0:01:45.8]} 21. Rxe8+ {[%clk 0:02:42.5]} 21... Rxe8 {[%clk
0:01:46.5]} 22. h3 {[%clk 0:02:43.9]} 22... Bh5 {[%clk 0:01:46.9]} 23. g4 {[%clk
0:02:44.2]} 23... Bg6 {[%clk 0:01:42.6]} 24. Bxg6 {[%clk 0:02:45.1]} 24... fxg6
{[%clk 0:01:44.5]} 25. Qd3 {[%clk 0:02:45.3]} 25... Qf7 {[%clk 0:01:42.4]} 26.
Kg2 {[%clk 0:02:40.7]} 26... Nb7 {[%clk 0:01:42.6]} 27. Re1 {[%clk 0:02:37.4]}
27... Rf8 {[%clk 0:01:38.5]} 28. Qe4 {[%clk 0:02:20.2]} 28... Nd6 {[%clk
0:01:28]} 29. Qxc6 {[%clk 0:02:18.3]} 29... Rc8 {[%clk 0:01:28.9]} 30. Qa6
{[%clk 0:02:06]} 30... Rxc2 {[%clk 0:01:28.1]} 31. Re2 {[%clk 0:02:07.2]} 31...
Rxe2 {[%clk 0:01:14.6]} 32. Qxe2 {[%clk 0:02:09.1]} 32... Qd5 {[%clk 0:01:10.7]}
33. Qe7 {[%clk 0:02:04.8]} 33... Nf7 {[%clk 0:01:11.8]} 34. Qxa7 {[%clk
0:02:03.9]} 34... Kh7 {[%clk 0:01:10.6]} 35. Qd4 {[%clk 0:02:01.5]} 35... Qxd4
{[%clk 0:01:08.1]} 36. Bxd4 {[%clk 0:02:03.4]} 36... Nd8 {[%clk 0:01:02.8]} 37.
a4 {[%clk 0:02:00.1]} 37... Ne6 {[%clk 0:01:00.3]} 38. Be3 {[%clk 0:01:59.6]}
38... Bd6 {[%clk 0:00:49.7]} 39. Nd4 {[%clk 0:02:00.2]} 39... Nc5 {[%clk
0:00:50.1]} 40. Nb5 {[%clk 0:02:01.2]} 40... Be7 {[%clk 0:00:45.8]} 41. Bxc5
{[%clk 0:02:02]} 1-0

[Event "*** Titled Tuesday Blitz"]
[Site "Chess.com"]
[Date "2018.04.03"]
[Round "2"]
[White "Blitzstream"]
[Black "pulvettd"]
[Result "0-1"]
[WhiteElo "2455"]
[BlackElo "2436"]
[TimeControl "180+2"]
[EndTime "13:20:45 PDT"]
[Termination "pulvettd won by resignation"]

1. e4 {[%clk 0:03:01.9]} 1... c5 {[%clk 0:03:00.6]} 2. c3 {[%clk 0:03:01.6]}
2... d5 {[%clk 0:03:00.3]} 3. exd5 {[%clk 0:03:02.3]} 3... Qxd5 {[%clk
0:03:01.9]} 4. Nf3 {[%clk 0:03:03.2]} 4... Nf6 {[%clk 0:03:02.3]} 5. d4 {[%clk
0:03:04.1]} 5... e6 {[%clk 0:03:02.9]} 6. Na3 {[%clk 0:02:49.4]} 6... Nc6 {[%clk
0:03:01.9]} 7. Nb5 {[%clk 0:02:47.5]} 7... Qd8 {[%clk 0:03:02.2]} 8. Bf4 {[%clk
0:02:48.1]} 8... Nd5 {[%clk 0:03:00.5]} 9. Bg3 {[%clk 0:02:49.1]} 9... a6 {[%clk
0:02:57.3]} 10. Na3 {[%clk 0:02:17.7]} 10... cxd4 {[%clk 0:02:53.6]} 11. Nxd4
{[%clk 0:02:05.1]} 11... Bxa3 {[%clk 0:02:52.3]} 12. Nxc6 {[%clk 0:01:55]} 12...
bxc6 {[%clk 0:02:54.2]} 13. bxa3 {[%clk 0:01:55.2]} 13... Qf6 {[%clk 0:02:39.4]}
14. Qd4 {[%clk 0:01:50.3]} 14... Nxc3 {[%clk 0:02:30.6]} 15. Be5 {[%clk
0:01:49.8]} 15... Qg6 {[%clk 0:02:17.8]} 16. Bd3 {[%clk 0:01:34.4]} 16... Qxg2
{[%clk 0:02:07.7]} 17. Qxc3 {[%clk 0:01:10.4]} 17... Qxh1+ {[%clk 0:02:04.7]}
18. Ke2 {[%clk 0:01:11.3]} 18... Qd5 {[%clk 0:02:02.3]} 19. Bxg7 {[%clk
0:01:08.7]} 19... Rg8 {[%clk 0:01:58.7]} 20. Bxh7 {[%clk 0:01:03.4]} 20... Qh5+
{[%clk 0:01:53.7]} 21. Ke1 {[%clk 0:00:47.2]} 21... Qxh7 {[%clk 0:01:39.4]} 22.
Qxc6+ {[%clk 0:00:47]} 22... Bd7 {[%clk 0:01:40.6]} 23. Qxa8+ {[%clk 0:00:44.4]}
23... Ke7 {[%clk 0:01:41.4]} 24. Qa7 {[%clk 0:00:37.5]} 24... Qe4+ {[%clk
0:01:38.8]} 25. Kd2 {[%clk 0:00:35.4]} 25... Rxg7 {[%clk 0:01:38.8]} 26. Qc5+
{[%clk 0:00:35.2]} 26... Ke8 {[%clk 0:01:39.9]} 27. Qc7 {[%clk 0:00:20.1]} 27...
Qd4+ {[%clk 0:01:35]} 28. Kc2 {[%clk 0:00:17.8]} 28... Ba4+ {[%clk 0:01:33.2]}
0-1

[Event "*** Titled Tuesday Blitz"]
[Site "Chess.com"]
[Date "2018.04.03"]
[Round "2"]
[White "vsuri97"]
[Black "GMHess"]
[Result "0-1"]
[WhiteElo "2637"]
[BlackElo "2501"]
[TimeControl "180+2"]
[EndTime "13:20:50 PDT"]
[Termination "GMHess won by resignation"]

1. Nf3 {[%clk 0:03:01.5]} 1... Nf6 {[%clk 0:02:59.7]} 2. g3 {[%clk 0:03:01.7]}
2... e6 {[%clk 0:03:00.2]} 3. Bg2 {[%clk 0:03:02.7]} 3... d5 {[%clk 0:03:02.1]}
4. O-O {[%clk 0:03:03.2]} 4... Be7 {[%clk 0:03:02.1]} 5. c4 {[%clk 0:03:04.8]}
5... dxc4 {[%clk 0:03:04]} 6. Qa4+ {[%clk 0:02:53.5]} 6... Bd7 {[%clk
0:02:59.3]} 7. Qxc4 {[%clk 0:02:54.5]} 7... Bc6 {[%clk 0:03:00.9]} 8. Nc3 {[%clk
0:02:51.8]} 8... O-O {[%clk 0:03:01.8]} 9. d3 {[%clk 0:02:48.5]} 9... Nbd7
{[%clk 0:03:01.9]} 10. b4 {[%clk 0:02:37.3]} 10... Bxf3 {[%clk 0:02:56.8]} 11.
Bxf3 {[%clk 0:02:35.4]} 11... Ne5 {[%clk 0:02:57.9]} 12. Qf4 {[%clk 0:02:36.2]}
12... Nxf3+ {[%clk 0:02:58.7]} 13. Qxf3 {[%clk 0:02:34.5]} 13... Bxb4 {[%clk
0:03:00]} 14. Bb2 {[%clk 0:02:32.6]} 14... c6 {[%clk 0:02:53.6]} 15. Rab1 {[%clk
0:02:32.7]} 15... a5 {[%clk 0:02:43.7]} 16. Rfc1 {[%clk 0:02:33.1]} 16... Qe7
{[%clk 0:02:40.6]} 17. Na4 {[%clk 0:02:26]} 17... Nd7 {[%clk 0:02:30.1]} 18. Qg4
{[%clk 0:01:51.5]} 18... f5 {[%clk 0:02:09.3]} 19. Qd4 {[%clk 0:01:52.1]} 19...
e5 {[%clk 0:02:07.4]} 20. Qc4+ {[%clk 0:01:37.3]} 20... Kh8 {[%clk 0:02:07.1]}
21. Qb3 {[%clk 0:01:35.6]} 21... b5 {[%clk 0:01:47.4]} 22. Nc3 {[%clk
0:01:33.6]} 22... Nc5 {[%clk 0:01:46.8]} 23. Qc2 {[%clk 0:01:34.1]} 23... Ne6
{[%clk 0:01:48.1]} 24. Nd1 {[%clk 0:01:27.1]} 24... Nd4 {[%clk 0:01:47.8]} 25.
Bxd4 {[%clk 0:01:25.6]} 25... exd4 {[%clk 0:01:49.7]} 26. e3 {[%clk 0:01:22.3]}
26... Ba3 {[%clk 0:01:41.7]} 27. Nb2 {[%clk 0:01:19.8]} 27... dxe3 {[%clk
0:01:41.2]} 28. Qxc6 {[%clk 0:01:21.2]} 28... exf2+ {[%clk 0:01:34.7]} 29. Kxf2
{[%clk 0:01:23.1]} 29... Rae8 {[%clk 0:01:34.7]} 30. Re1 {[%clk 0:01:12.6]}
30... Qa7+ {[%clk 0:01:35.5]} 31. Kf1 {[%clk 0:00:58]} 31... Rxe1+ {[%clk
0:01:32.5]} 32. Rxe1 {[%clk 0:00:59.9]} 32... Bxb2 {[%clk 0:01:31.3]} 33. Re8
{[%clk 0:01:01.2]} 33... Qf7 {[%clk 0:01:26.3]} 34. Rxf8+ {[%clk 0:01:02.7]}
34... Qxf8 {[%clk 0:01:27.4]} 35. Qxb5 {[%clk 0:01:04.6]} 35... Bc3 {[%clk
0:01:23]} 0-1

[Event "*** Titled Tuesday Blitz"]
[Site "Chess.com"]
[Date "2018.04.03"]
[Round "2"]
[White "RandomOracle"]
[Black "2L8IWUN"]
[Result "0-1"]
[WhiteElo "2148"]
[BlackElo "2103"]
[TimeControl "180+2"]
[EndTime "13:20:50 PDT"]
[Termination "2L8IWUN won by resignation"]

1. d4 {[%clk 0:02:58.8]} 1... Nf6 {[%clk 0:03:00.6]} 2. c4 {[%clk 0:02:59.3]}
2... g6 {[%clk 0:03:00.2]} 3. Nc3 {[%clk 0:03:00.1]} 3... Bg7 {[%clk 0:03:00]}
4. e4 {[%clk 0:03:00.4]} 4... d6 {[%clk 0:03:01.2]} 5. h3 {[%clk 0:03:00]} 5...
O-O {[%clk 0:03:01.3]} 6. Nf3 {[%clk 0:03:00.9]} 6... e5 {[%clk 0:02:59.5]} 7.
d5 {[%clk 0:02:59.3]} 7... a5 {[%clk 0:02:44.6]} 8. Bg5 {[%clk 0:02:49.9]} 8...
Na6 {[%clk 0:02:40.8]} 9. g4 {[%clk 0:02:50.6]} 9... Nc5 {[%clk 0:02:34.3]} 10.
Qc2 {[%clk 0:02:51.1]} 10... c6 {[%clk 0:02:32.1]} 11. Be2 {[%clk 0:02:46.9]}
11... cxd5 {[%clk 0:02:23.8]} 12. cxd5 {[%clk 0:02:39.8]} 12... Bd7 {[%clk
0:02:24.5]} 13. Nd2 {[%clk 0:02:32.8]} 13... Rc8 {[%clk 0:02:20.2]} 14. a4
{[%clk 0:02:07.6]} 14... Qb6 {[%clk 0:02:16.3]} 15. Nc4 {[%clk 0:02:08.1]} 15...
Qb4 {[%clk 0:02:09.2]} 16. Bxf6 {[%clk 0:00:52.4]} 16... Bxf6 {[%clk 0:02:03.1]}
17. Ra3 {[%clk 0:00:52.1]} 17... Bxa4 {[%clk 0:01:53.5]} 18. Rxa4 {[%clk
0:00:51]} 18... Nxa4 {[%clk 0:01:50.9]} 19. Qxa4 {[%clk 0:00:51.7]} 19... Qxa4
{[%clk 0:01:48.1]} 20. Nxa4 {[%clk 0:00:52.3]} 20... b5 {[%clk 0:01:48.7]} 21.
Nxd6 {[%clk 0:00:48.3]} 21... Rc1+ {[%clk 0:01:44.4]} 22. Bd1 {[%clk 0:00:48]}
22... bxa4 {[%clk 0:01:44.7]} 23. Ke2 {[%clk 0:00:48.8]} 23... Rb8 {[%clk
0:01:26.6]} 24. Kd3 {[%clk 0:00:45.1]} 24... Rxb2 {[%clk 0:01:22.9]} 25. Nc4
{[%clk 0:00:44.7]} 25... Rbb1 {[%clk 0:01:20.5]} 26. Ne3 {[%clk 0:00:40.9]}
26... Bg5 {[%clk 0:01:17.8]} 0-1

[Event "*** Titled Tuesday Blitz"]
[Site "Chess.com"]
[Date "2018.04.03"]
[Round "2"]
[White "gemarin"]
[Black "aa175"]
[Result "1-0"]
[WhiteElo "1867"]
[BlackElo "1938"]
[TimeControl "180+2"]
[EndTime "13:20:54 PDT"]
[Termination "gemarin won on time"]

1. d4 {[%clk 0:02:59.2]} 1... e5 {[%clk 0:02:59.7]} 2. dxe5 {[%clk 0:02:58.4]}
2... Nc6 {[%clk 0:02:58.4]} 3. Nf3 {[%clk 0:02:58.3]} 3... Qe7 {[%clk
0:02:57.7]} 4. Qd5 {[%clk 0:02:57.3]} 4... g6 {[%clk 0:02:58.1]} 5. c3 {[%clk
0:02:55.6]} 5... Bg7 {[%clk 0:02:57.2]} 6. Bg5 {[%clk 0:02:49.5]} 6... Qf8
{[%clk 0:02:54.6]} 7. Nbd2 {[%clk 0:02:44.6]} 7... Nge7 {[%clk 0:02:55.1]} 8.
Qe4 {[%clk 0:02:42.9]} 8... b6 {[%clk 0:02:52.6]} 9. e3 {[%clk 0:02:39.1]} 9...
Bb7 {[%clk 0:02:52.6]} 10. Be2 {[%clk 0:02:35.6]} 10... O-O-O {[%clk 0:02:52.9]}
11. Qa4 {[%clk 0:02:32]} 11... h6 {[%clk 0:02:50.6]} 12. Bf6 {[%clk 0:02:31.7]}
12... Kb8 {[%clk 0:02:12.9]} 13. Nd4 {[%clk 0:02:29.2]} 13... Nxe5 {[%clk
0:02:10.4]} 14. Bxg7 {[%clk 0:02:21.9]} 14... Qxg7 {[%clk 0:02:10.9]} 15. Nb5
{[%clk 0:02:22.2]} 15... a6 {[%clk 0:02:08.1]} 16. Nd4 {[%clk 0:02:20]} 16...
Bxg2 {[%clk 0:02:08.9]} 17. Rg1 {[%clk 0:02:19.4]} 17... Bb7 {[%clk 0:02:09.6]}
18. Bxa6 {[%clk 0:02:17.9]} 18... N7c6 {[%clk 0:01:58.9]} 19. O-O-O {[%clk
0:02:13]} 19... Qf6 {[%clk 0:01:48.7]} 20. f4 {[%clk 0:02:10.6]} 20... Nxd4
{[%clk 0:01:45.8]} 21. fxe5 {[%clk 0:02:05]} 21... b5 {[%clk 0:00:54.2]} 22.
Bxb5 {[%clk 0:01:56.8]} 22... Ne2+ {[%clk 0:00:02.2]} 23. Bxe2 {[%clk
0:01:54.4]} 23... Qxe5 {[%clk 0:00:03]} 24. Qf4 {[%clk 0:01:54.3]} 24... Qa5
{[%clk 0:00:02.6]} 25. Kb1 {[%clk 0:01:52]} 25... Bd5 {[%clk 0:00:02.3]} 26. Nb3
{[%clk 0:01:51.5]} 26... Bxb3 {[%clk 0:00:02.5]} 27. axb3 {[%clk 0:01:52]} 27...
f6 {[%clk 0:00:04]} 28. Kc2 {[%clk 0:01:51.4]} 28... f5 {[%clk 0:00:04.8]} 29.
Ra1 {[%clk 0:01:51.4]} 29... Qb6 {[%clk 0:00:06.7]} 30. Ra4 {[%clk 0:01:50.6]}
30... d5 {[%clk 0:00:02.4]} 31. Rb4 {[%clk 0:01:50.2]} 1-0

[Event "*** Titled Tuesday Blitz"]
[Site "Chess.com"]
[Date "2018.04.03"]
[Round "2"]
[White "patrisiii123"]
[Black "AndrewDGreen"]
[Result "1-0"]
[WhiteElo "2259"]
[BlackElo "2142"]
[TimeControl "180+2"]
[EndTime "13:20:55 PDT"]
[Termination "patrisiii123 won on time"]

1. e4 {[%clk 0:03:01.9]} 1... c5 {[%clk 0:03:00.6]} 2. Nf3 {[%clk 0:03:02.9]}
2... g6 {[%clk 0:03:01.7]} 3. d4 {[%clk 0:03:04]} 3... cxd4 {[%clk 0:03:03.6]}
4. Nxd4 {[%clk 0:03:05.9]} 4... Nc6 {[%clk 0:03:04.2]} 5. Be3 {[%clk 0:03:06.7]}
5... Nf6 {[%clk 0:03:04.2]} 6. f3 {[%clk 0:03:06.3]} 6... d5 {[%clk 0:02:56.8]}
7. Nxc6 {[%clk 0:03:01.6]} 7... bxc6 {[%clk 0:02:57.6]} 8. e5 {[%clk 0:03:03]}
8... Nd7 {[%clk 0:02:55.8]} 9. f4 {[%clk 0:03:03.9]} 9... Bg7 {[%clk 0:02:53.5]}
10. Be2 {[%clk 0:03:03.6]} 10... O-O {[%clk 0:02:54]} 11. O-O {[%clk 0:03:04.5]}
11... f6 {[%clk 0:02:53.3]} 12. exf6 {[%clk 0:02:58.8]} 12... Nxf6 {[%clk
0:02:50.2]} 13. c3 {[%clk 0:02:59.8]} 13... Qc7 {[%clk 0:02:34.6]} 14. Nd2
{[%clk 0:02:58]} 14... e5 {[%clk 0:02:30]} 15. fxe5 {[%clk 0:02:54.9]} 15...
Qxe5 {[%clk 0:02:31.9]} 16. Bf4 {[%clk 0:02:55.6]} 16... Qe7 {[%clk 0:02:29.4]}
17. Nb3 {[%clk 0:02:54.8]} 17... Bf5 {[%clk 0:02:06.1]} 18. Nd4 {[%clk
0:02:52.4]} 18... Bd7 {[%clk 0:02:02.9]} 19. Bf3 {[%clk 0:02:34.6]} 19... Ne4
{[%clk 0:01:58]} 20. Bxe4 {[%clk 0:02:29.1]} 20... Qxe4 {[%clk 0:01:59.9]} 21.
Qd2 {[%clk 0:02:23.2]} 21... Qe7 {[%clk 0:01:19]} 22. Rae1 {[%clk 0:02:15.6]}
22... Qc5 {[%clk 0:01:17.3]} 23. b4 {[%clk 0:02:03.9]} 23... Qc4 {[%clk
0:01:13.9]} 24. Bd6 {[%clk 0:01:51.4]} 24... Rxf1+ {[%clk 0:01:10.2]} 25. Rxf1
{[%clk 0:01:53.3]} 25... Re8 {[%clk 0:01:06]} 26. Bc5 {[%clk 0:01:48.5]} 26...
Bxd4+ {[%clk 0:00:25.7]} 27. Bxd4 {[%clk 0:01:48.8]} 27... Qe2 {[%clk
0:00:18.5]} 28. Qh6 {[%clk 0:01:39.9]} 1-0

[Event "*** Titled Tuesday Blitz"]
[Site "Chess.com"]
[Date "2018.04.03"]
[Round "2"]
[White "GMSrinath"]
[Black "Korchmar_Vasiliy"]
[Result "0-1"]
[WhiteElo "2731"]
[BlackElo "2632"]
[TimeControl "180+2"]
[EndTime "13:20:58 PDT"]
[Termination "Korchmar_Vasiliy won by checkmate"]

1. e4 {[%clk 0:03:01.9]} 1... c5 {[%clk 0:02:59.9]} 2. Nf3 {[%clk 0:03:02.3]}
2... e6 {[%clk 0:03:01.1]} 3. d4 {[%clk 0:03:01.9]} 3... cxd4 {[%clk 0:03:03]}
4. Nxd4 {[%clk 0:03:03.8]} 4... a6 {[%clk 0:03:04.2]} 5. Nc3 {[%clk 0:03:04.2]}
5... d6 {[%clk 0:03:02.4]} 6. Be2 {[%clk 0:02:59.8]} 6... Nf6 {[%clk 0:03:00]}
7. O-O {[%clk 0:02:59]} 7... Nbd7 {[%clk 0:03:00.8]} 8. f4 {[%clk 0:02:53.5]}
8... b5 {[%clk 0:03:00.8]} 9. Bf3 {[%clk 0:02:52.7]} 9... Bb7 {[%clk 0:02:58.5]}
10. Re1 {[%clk 0:02:53.4]} 10... Be7 {[%clk 0:02:58.1]} 11. e5 {[%clk
0:02:33.4]} 11... Bxf3 {[%clk 0:02:43]} 12. Qxf3 {[%clk 0:02:32.6]} 12... dxe5
{[%clk 0:02:44.4]} 13. Nc6 {[%clk 0:02:29.4]} 13... Qb6+ {[%clk 0:02:45]} 14.
Be3 {[%clk 0:02:28.7]} 14... Bc5 {[%clk 0:02:44.7]} 15. Nxe5 {[%clk 0:01:28]}
15... Bxe3+ {[%clk 0:02:41.8]} 16. Rxe3 {[%clk 0:01:26.3]} 16... O-O {[%clk
0:02:42.5]} 17. Kh1 {[%clk 0:01:21.7]} 17... b4 {[%clk 0:02:40.9]} 18. Ne4
{[%clk 0:01:21.6]} 18... Rad8 {[%clk 0:02:28.2]} 19. Nxd7 {[%clk 0:00:49.7]}
19... Nxd7 {[%clk 0:02:30.1]} 20. Rae1 {[%clk 0:00:51.1]} 20... Nc5 {[%clk
0:02:24.4]} 21. Ng3 {[%clk 0:00:46.6]} 21... Rd2 {[%clk 0:02:21]} 22. f5 {[%clk
0:00:41.2]} 22... Qd8 {[%clk 0:01:46.4]} 23. Nh5 {[%clk 0:00:32.2]} 23... Qd4
{[%clk 0:01:35.9]} 24. c3 {[%clk 0:00:22.2]} 24... bxc3 {[%clk 0:01:36.9]} 25.
bxc3 {[%clk 0:00:24.1]} 25... Qh4 {[%clk 0:01:37.9]} 26. Re5 {[%clk 0:00:15.4]}
26... Nd3 {[%clk 0:01:35.8]} 27. g3 {[%clk 0:00:05.8]} 27... Qxh2# {[%clk
0:01:34.5]} 0-1

[Event "*** Titled Tuesday Blitz"]
[Site "Chess.com"]
[Date "2018.04.03"]
[Round "2"]
[White "DACF2905"]
[Black "andante"]
[Result "1-0"]
[WhiteElo "2051"]
[BlackElo "2187"]
[TimeControl "180+2"]
[EndTime "13:21:03 PDT"]
[Termination "DACF2905 won by checkmate"]

1. e4 {[%clk 0:02:59.1]} 1... c5 {[%clk 0:03:00]} 2. Nf3 {[%clk 0:02:59.9]} 2...
d6 {[%clk 0:03:01]} 3. d4 {[%clk 0:03:00.8]} 3... cxd4 {[%clk 0:03:00.6]} 4.
Nxd4 {[%clk 0:03:02]} 4... Nf6 {[%clk 0:03:00.8]} 5. Nc3 {[%clk 0:03:01.8]} 5...
a6 {[%clk 0:02:59.5]} 6. Bg5 {[%clk 0:03:02.4]} 6... e6 {[%clk 0:02:52.9]} 7. f4
{[%clk 0:03:02.8]} 7... h6 {[%clk 0:02:49.7]} 8. Bh4 {[%clk 0:03:02.5]} 8... Nc6
{[%clk 0:02:44.3]} 9. Nxc6 {[%clk 0:02:59.2]} 9... bxc6 {[%clk 0:02:44.1]} 10.
e5 {[%clk 0:03:00.3]} 10... g5 {[%clk 0:02:38.2]} 11. fxg5 {[%clk 0:02:59.6]}
11... Nd5 {[%clk 0:02:38.6]} 12. Nxd5 {[%clk 0:02:53.7]} 12... exd5 {[%clk
0:02:29.2]} 13. Qh5 {[%clk 0:02:52.4]} 13... Bf5 {[%clk 0:02:03.3]} 14. O-O-O
{[%clk 0:02:12.5]} 14... Bg6 {[%clk 0:01:58.2]} 15. Qg4 {[%clk 0:02:12.9]} 15...
Qa5 {[%clk 0:01:51.5]} 16. e6 {[%clk 0:01:58.5]} 16... Qxa2 {[%clk 0:01:37.4]}
17. exf7+ {[%clk 0:01:58.9]} 17... Kxf7 {[%clk 0:01:36.9]} 18. Bd3 {[%clk
0:01:56.5]} 18... Bxd3 {[%clk 0:01:15.4]} 19. Rhf1+ {[%clk 0:01:42.2]} 19...
Bxf1 {[%clk 0:01:12.4]} 20. Rxf1+ {[%clk 0:01:42.5]} 20... Ke8 {[%clk
0:01:06.4]} 21. Qe6+ {[%clk 0:01:35.8]} 21... Be7 {[%clk 0:01:06.9]} 22. Re1
{[%clk 0:01:36]} 22... Ra7 {[%clk 0:00:52]} 23. g6 {[%clk 0:01:32.4]} 23... Qa1+
{[%clk 0:00:42.7]} 24. Kd2 {[%clk 0:01:33.1]} 24... Qa5+ {[%clk 0:00:42]} 25. c3
{[%clk 0:01:33.9]} 25... Qc7 {[%clk 0:00:17.2]} 26. Bxe7 {[%clk 0:01:22.3]}
26... Qxe7 {[%clk 0:00:13.7]} 27. Qc8# {[%clk 0:01:22.9]} 1-0